fUST/lending_fUST_20240203
["ID","MTS","AMOUNT","RATE_DAILY","PERIOD"]
[313182085,1706891443815,-1303.39,0.00028493,2]
[313182086,1706891443824,-500.0,0.00028493,2]
[313182087,1706891443834,-343.61,0.00028493,2]
[313182088,1706891443844,-365.53,0.00028493,2]
[313182089,1706891443854,-908.38,0.00028493,2]
[313182090,1706891443863,-332.09,0.00028493,2]
[313182091,1706891443873,-500.0,0.00028493,2]
[313182092,1706891443883,-500.0,0.00028493,2]
[313182093,1706891443970,-800.24,0.00028493,2]
[313182094,1706891443980,-1624.27,0.00028493,2]
[313182095,1706891443990,-1546.6,0.00028493,2]
[313182096,1706891444000,-521.61,0.00028493,2]
[313182097,1706891444009,-640.67,0.00028493,2]
[313182098,1706891444019,-541.61,0.00028493,2]
[313182099,1706891444028,-3459.22,0.00028493,2]
[313182100,1706891444039,-500.0,0.00028493,2]
[313182101,1706891444048,-1061.58,0.00028493,2]
[313182102,1706891444057,-500.0,0.00028493,2]
[313182103,1706891444066,-500.0,0.00028493,2]
[313182104,1706891444076,-6257.65,0.00028493,2]
[313182105,1706891444085,-631.05,0.00028493,2]
[313182106,1706891444094,-4164.62,0.00028493,2]
[313182107,1706891444104,-500.0,0.00028493,2]
[313182108,1706891444113,-500.0,0.00028493,2]
[313182109,1706891444122,-1313.81,0.00028493,2]
[313182110,1706891444131,-1496.25,0.00028493,2]
[313182111,1706891444140,-500.0,0.00028493,2]
[313182112,1706891444150,-944.81,0.00028493,2]
[313182113,1706891444159,-10.77100108,0.00028493,2]
[313182114,1706891444208,-500.0,0.00027396,2]
[313182115,1706891444218,-500.0,0.00027396,2]
[313182116,1706891444227,-500.0,0.00027396,2]
[313182117,1706891444237,-500.0,0.00027396,2]
[313182118,1706891444246,-166.03780741,0.00027397,2]
[313182119,1706891444256,-500.0,0.00027397,2]
[313182121,1706891444266,-1174.03899892,0.00028493,2]
[313182123,1706891444276,-36.59633428,0.00028493,2]
[313182124,1706891444289,-8089.74366572,0.00028493,2]
[313182125,1706891444298,-3438.99,0.00028493,2]
[313182126,1706891444308,-500.0,0.00028493,2]
[313182127,1706891444317,-1157.82675871,0.000285,2]
[313182128,1706891444326,-1042.0,0.00028697,2]
[313182129,1706891444336,-484.31851379,0.00028697,2]
[313182130,1706891444348,-189.3733339,0.00028697,2]
[313182131,1706891444358,-653.72671983,0.00028697,2]
[313182132,1706891444367,-167.27020705,0.00028697,2]
[313182133,1706891444376,-425.26243126,0.00028697,2]
[313182134,1706891444385,-166.87686881,0.00028698,2]
[313182135,1706891444394,-223.34730588,0.00028698,2]
[313182136,1706891444404,-164.49311095,0.00028698,2]
[313182137,1706891444413,-1996.50298693,0.00028698,2]
[313182138,1706891444422,-352.00784352,0.00028698,2]
[313182139,1706891444432,-270.58574525,0.00028698,2]
[313182140,1706891444441,-2709.69212169,0.00028698,5]
[313182141,1706891444450,-214.39837617,0.00028698,2]
[313182142,1706891444460,-170.03685435,0.00028698,2]
[313182143,1706891444470,-503.07954786,0.00028766,2]
[313182144,1706891444479,-176.8932455,0.00028766,2]
[313182145,1706891444488,-500.0,0.00028766,2]
[313182146,1706891444501,-185.12295247,0.00028766,2]
[313182147,1706891444511,-430.88746963,0.00028766,2]
[313182148,1706891444521,-547.49594692,0.00028766,2]
[313182149,1706891444530,-500.0,0.00028766,2]
[313182150,1706891444542,-500.0,0.00028766,2]
[313182151,1706891444551,-436.84902329,0.00028766,2]
[313182152,1706891444560,-500.0,0.00028766,2]
[313182153,1706891444571,-500.0,0.00028766,2]
[313182154,1706891444580,-500.0,0.00028766,2]
[313182155,1706891444590,-419.69780003,0.00028766,2]
[313182156,1706891444599,-500.0,0.00028766,2]
[313182157,1706891444609,-500.0,0.00028767,2]
[313182158,1706891444618,-500.0,0.00028767,2]
[313182159,1706891444627,-595.51,0.00028767,2]
[313182160,1706891444636,-155.0,0.00028767,2]
[313182161,1706891444645,-1303.39,0.00028767,2]
[313182162,1706891444654,-500.0,0.00028767,2]
[313182163,1706891444663,-908.38,0.00028767,2]
[313182164,1706891444674,-500.0,0.00028767,2]
[313182165,1706891444683,-500.0,0.00028767,2]
[313182166,1706891444692,-800.24,0.00028767,2]
[313182167,1706891444702,-1624.27,0.00028767,2]
[313182168,1706891444712,-1546.6,0.00028767,2]
[313182169,1706891444721,-521.61,0.00028767,2]
[313182170,1706891444730,-640.67,0.00028767,2]
[313182171,1706891444740,-541.61,0.00028767,2]
[313182172,1706891444749,-3459.22,0.00028767,2]
[313182173,1706891444758,-500.0,0.00028767,2]
[313182174,1706891444767,-1061.58,0.00028767,2]
[313182175,1706891444777,-500.0,0.00028767,2]
[313182176,1706891444786,-500.0,0.00028767,2]
[313182177,1706891444796,-6257.65,0.00028767,2]
[313182179,1706891444805,-631.05,0.00028767,2]
[313182181,1706891444815,-4164.62,0.00028767,2]
[313182183,1706891444824,-500.0,0.00028767,2]
[313182184,1706891444834,-500.0,0.00028767,2]
[313182185,1706891444844,-1313.81,0.00028767,2]
[313182186,1706891444855,-1496.25,0.00028767,2]
[313182187,1706891444869,-500.0,0.00028767,2]
[313182188,1706891444883,-944.81,0.00028767,2]
[313182189,1706891444896,-1184.81,0.00028767,2]
[313182190,1706891444908,-1476.58965217,0.00028767,2]
[313182192,1706891444921,-6649.75034783,0.00028767,2]
[313182194,1706891444933,-3438.99,0.00028767,2]
[313182196,1706891444946,-500.0,0.00028767,2]
[313182198,1706891444958,-22538.5362242,0.000288,4]
[313182200,1706891444970,-882.54484009,0.00028885,2]
[313182201,1706891444983,-279.87788841,0.00029,2]
[313182202,1706891444995,-258.42418179,0.00029,5]
[313182203,1706891445008,-664.89910932,0.00029,5]
[313182204,1706891445021,-171.47000668,0.00029,7]
[313182205,1706891445032,-172.54601206,0.00029,5]
[313182206,1706891445045,-154.32300601,0.00029,7]
[313182207,1706891445058,-500.0,0.00029041,2]
[313182208,1706891445070,-500.0,0.00029041,2]
[313182209,1706891445083,-595.51,0.00029041,2]
[313182210,1706891445094,-1303.39,0.00029041,2]
[313182211,1706891445106,-500.0,0.00029041,2]
[313182212,1706891445119,-908.38,0.00029041,2]
[313182213,1706891445132,-500.0,0.00029041,2]
[313182214,1706891445142,-500.0,0.00029041,2]
[313182215,1706891445152,-800.24,0.00029041,2]
[313182216,1706891445163,-1624.27,0.00029041,2]
[313182217,1706891445178,-1546.6,0.00029041,2]
[313182218,1706891445190,-521.61,0.00029041,2]
[313182219,1706891445202,-640.67,0.00029041,2]
[313182220,1706891445214,-541.61,0.00029041,2]
[313182221,1706891445226,-3459.22,0.00029041,2]
[313182222,1706891445237,-500.0,0.00029041,2]
[313182223,1706891445250,-1061.58,0.00029041,2]
[313182224,1706891445263,-500.0,0.00029041,2]
[313182225,1706891445275,-453.35922914,0.00029041,2]
[313182339,1706891926533,-1295.94446577,0.00021868,2]
[313182340,1706891926556,-212.4169632,0.00021868,2]
[313182341,1706891926578,-230.63857103,0.00021868,2]
[313182434,1706892117209,190.55,0.00021858,3]
[313182435,1706892127722,158.79,0.00021844,3]
[313182440,1706892137983,271.05,0.00021844,3]
[313182452,1706892149279,225.88,0.00021844,3]
[313182454,1706892160515,188.23,0.00021844,3]
[313182455,1706892171377,156.86,0.00021842,3]
[313182457,1706892182745,784.31,0.00021842,3]
[313182462,1706892289303,152.91,0.00020839,3]
[313182463,1706892299794,197.08,0.00020839,3]
[313182464,1706892310764,289.26,0.00020839,3]
[313182465,1706892322561,314.79,0.00020839,3]
[313182466,1706892333647,262.33,0.00020839,3]
[313182472,1706892485999,-651.3516216,0.00020055,2]
[313182473,1706892486020,-1244.61449288,0.00020055,2]
[313182474,1706892486042,-155.02635448,0.00020055,2]
[313182475,1706892486063,-1743.90819804,0.00020056,2]
[313182476,1706892486084,-2042.80747063,0.00020056,2]
[313182477,1706892486104,-322.06127261,0.00020056,2]
[313182478,1706892486125,-5218.9312891,0.00020056,2]
[313182479,1706892486147,-260.80238899,0.00020057,2]
[313182480,1706892486172,-155.02635448,0.00020057,2]
[313182481,1706892486193,-155.02635448,0.00020057,2]
[313182482,1706892486215,-863.44420271,0.00020057,2]
[313182483,1706892488228,361.440516,0.00019063,2]
[313182487,1706892596059,3000.0,0.00019064,2]
[313182489,1706892626300,171.0131344,0.00019513,2]
[313182519,1706892633937,-199.56931104,0.00020045,2]
[313182521,1706892633947,-1432.81517773,0.00020045,2]
[313182523,1706892633957,-322.06127261,0.00020045,2]
[313182525,1706892633967,-562.60505917,0.00020046,2]
[313182527,1706892633977,-155.02635448,0.00020047,2]
[313182529,1706892633986,-2042.80747063,0.00020047,2]
[313182530,1706892633996,-155.02635448,0.00020048,2]
[313182532,1706892634007,-1698.8854666,0.00020048,2]
[313182533,1706892634016,-37028.48161745,0.00020048,2]
[313182536,1706892634026,-3492.24028975,0.00020049,2]
[313182537,1706892634035,-2555.97146302,0.0002006,2]
[313182539,1706892634045,-158.15282978,0.00020073,2]
[313182541,1706892634054,-167.32375546,0.00020073,2]
[313182543,1706892634064,-353.68778065,0.00020073,2]
[313182545,1706892634073,-1816.97691104,0.00020073,2]
[313182547,1706892634082,-675.95830598,0.00020073,2]
[313182550,1706892634092,-494.79208211,0.00020073,2]
[313182551,1706892634101,-836.35928263,0.00020073,2]
[313182553,1706892634111,-290.09377389,0.00020073,2]
[313182555,1706892634121,-310.0356582,0.00020073,2]
[313182557,1706892634130,-1239.61390854,0.00020074,2]
[313182559,1706892634140,-876.5941336,0.00020096,2]
[313182561,1706892634149,-580.96,0.00020839,3]
[313182563,1706892634158,-24900.0,0.00020849,2]
[313182566,1706892634168,-175.45847318,0.00021853,2]
[313182567,1706892634177,-1295.99571983,0.00021868,2]
[313182570,1706892634187,-155.09271175,0.00021873,2]
[313182571,1706892634196,-309.97209841,0.00021873,2]
[313182574,1706892634206,-720.91777516,0.00021874,2]
[313182576,1706892634215,-2857.00308829,0.00023666,2]
[313182577,1706892634224,-7369.29846161,0.00023685,2]
[313182579,1706892634233,-1639.65607784,0.00023695,2]
[313182581,1706892634243,-336.2,0.00023888,3]
[313182584,1706892634252,-83824.13419779,0.00023898,2]
[313182585,1706892634264,-471.52300846,0.000239,2]
[313182588,1706892634275,-500.0,0.00026915,2]
[313182589,1706892634285,-500.0,0.00026915,2]
[313182591,1706892634294,-500.0,0.00026915,2]
[313182593,1706892634303,-458.0694435,0.00026915,2]
[313182595,1706892634312,-500.0,0.00026915,2]
[313182597,1706892634321,-314.75394542,0.00026915,2]
[313182599,1706892634331,-500.0,0.00026915,2]
[313182601,1706892634340,-500.0,0.00026915,2]
[313182603,1706892634349,-500.0,0.00026915,2]
[313182605,1706892634359,-500.0,0.00026915,2]
[313182608,1706892634368,-500.0,0.00026915,2]
[313182609,1706892634378,-500.0,0.00026915,2]
[313182612,1706892634388,-500.0,0.00026915,2]
[313182613,1706892634397,-267.81469663,0.00026915,2]
[313182697,1706892639495,-212.4169632,0.00020044,2]
[313182698,1706892639505,-232.18530337,0.00026915,2]
[313182699,1706892639516,-500.0,0.00026915,2]
[313182700,1706892639526,-500.0,0.00026915,2]
[313182701,1706892639535,-500.0,0.00026915,2]
[313182702,1706892639544,-308.70155317,0.00026915,2]
[313182703,1706892639553,-500.0,0.00026915,2]
[313182704,1706892639562,-500.0,0.00026915,2]
[313182705,1706892639571,-183.2753313,0.00026915,2]
[313182706,1706892639582,-324.62799839,0.00026915,2]
[313182707,1706892639591,-500.0,0.00026915,2]
[313182708,1706892639600,-500.0,0.00026915,2]
[313182709,1706892639609,-516.71660753,0.00026915,2]
[313182710,1706892639618,-500.0,0.00026915,2]
[313182711,1706892639627,-500.0,0.00026915,2]
[313182712,1706892639635,-500.0,0.00026915,2]
[313182713,1706892639646,-511.52800579,0.00026915,2]
[313182714,1706892639655,-500.0,0.00026915,2]
[313182715,1706892639664,-172.74863703,0.00026915,2]
[313182716,1706892639677,-327.25136297,0.00026915,2]
[313182717,1706892639686,-3182.39598308,0.00026916,2]
[313182718,1706892639729,-143.91180021,0.00026916,2]
[313182719,1706892639738,-2137.07747818,0.00027177,2]
[313182720,1706892639747,-8466.09339158,0.00027177,2]
[313182721,1706892639757,-544.3,0.00027181,3]
[313182722,1706892639766,-1557.14671443,0.00027187,2]
[313182723,1706892639775,-373.13901918,0.00027187,2]
[313182724,1706892639785,-642.42435849,0.00027187,2]
[313182725,1706892639794,-262.54949426,0.00027187,2]
[313182726,1706892639803,-268.38416518,0.00027187,2]
[313182727,1706892639812,-213.595546,0.00027187,2]
[313182728,1706892639823,-155.06542336,0.00027187,2]
[313182729,1706892639836,-225.62064487,0.00027187,2]
[313182730,1706892639846,-1993.40056298,0.00027187,2]
[313182731,1706892639855,-190.59349379,0.00027187,2]
[313182732,1706892639867,-324.03012074,0.00027187,2]
[313182880,1706892644499,-295.84696109,0.00027187,2]
[313182881,1706892644508,-6.16301596,0.00027187,2]
[313182896,1706892646400,-273.36391862,0.00027187,2]
[313182897,1706892646410,-116.44653671,0.00027187,2]
[313182898,1706892646423,-42.84211561,0.00027187,2]
[313182899,1706892646433,-198.86221923,0.00027187,2]
[313182900,1706892646442,-161.15953298,0.00027187,2]
[313182902,1706892646451,-155.51073257,0.00027187,2]
[313182904,1706892646460,-157.59652551,0.00027187,2]
[313182906,1706892646470,-1.2970379,0.00027187,2]
[313182920,1706892646591,-2.62974649,0.00027187,2]
[313183074,1706893832406,-2042.80747063,0.00021977,2]
[313183076,1706893832416,-609.08979656,0.00021978,2]
[313183078,1706893832425,-164.59714006,0.00021979,2]
[313183080,1706893832434,-20935.35188878,0.00022077,2]
[313183082,1706893832444,-3492.24028975,0.00022078,2]
[313183084,1706893832453,-1432.81517773,0.00022079,2]
[313183086,1706893832462,-1698.8854666,0.00022079,2]
[313183089,1706893832472,-322.06127261,0.00022079,2]
[313183092,1706893832481,-212.4169632,0.0002208,2]
[313183094,1706893832489,-37028.48161745,0.00022084,2]
[313183096,1706893832499,-9875.25661681,0.00022091,2]
[313183098,1706893832508,-6798.23535449,0.00022188,2]
[313183100,1706893832518,-6798.23535449,0.00022188,2]
[313183102,1706893832527,-6798.23535449,0.00022188,2]
[313183104,1706893832536,-24900.0,0.00022191,2]
[313183106,1706893832545,-165.75969649,0.00022282,2]
[313183108,1706893832554,-1603.6984376,0.00022384,2]
[313183110,1706893832563,-573.021272,0.00022859,2]
[313183112,1706893832572,-250.0,0.00022912,2]
[313183114,1706893832581,-1644.67254358,0.00023619,2]
[313183116,1706893832590,-185.73963984,0.00023864,2]
[313183118,1706893832599,-200.0,0.00024619,7]
[313183120,1706893832608,-165.75969648,0.00024685,2]
[313183122,1706893832618,-562.60505917,0.00026082,2]
[313183124,1706893832627,-495.05930133,0.00026371,5]
[313183126,1706893832636,-3057.76932555,0.00027,2]
[313183128,1706893832645,-165.75969648,0.00027087,2]
[313183130,1706893832654,-764.62311397,0.00027087,2]
[313183131,1706893832663,-27726.63088895,0.00027087,2]
[313183133,1706893832672,-198.94947205,0.00027186,2]
[313183135,1706893832681,-465.10363133,0.00027186,2]
[313183137,1706893832690,-223.10036997,0.00027186,2]
[313183139,1706893832699,-501.85740084,0.00027186,2]
[313183141,1706893832708,-500.0,0.00027186,2]
[313183143,1706893832717,-167.9475562,0.00027186,2]
[313183145,1706893832726,-683.61155489,0.00027187,2]
[313183147,1706893832735,-1580.99696612,0.00027187,2]
[313183149,1706893832744,-175.40467432,0.00027187,2]
[313183151,1706893832753,-19892.62116688,0.00027187,2]
[313183153,1706893832762,-273.02300698,0.00027187,2]
[313183155,1706893832771,-280.25684936,0.00027187,2]
[313183156,1706893832780,-130247.73310976,0.00027187,7]
[313183159,1706893832793,-120312.18514388,0.00027187,7]
[313183161,1706893832802,-765.40311766,0.00027187,2]
[313183163,1706893832811,-300.0,0.00027187,2]
[313183164,1706893832821,-535.7952849,0.00027187,2]
[313183166,1706893832830,-261.50125071,0.00027188,2]
[313183169,1706893832840,-243.43578923,0.00027188,2]
[313183170,1706893832849,-2105.3133158,0.00027188,2]
[313183172,1706893832859,-203.07873463,0.00027188,2]
[313183174,1706893832868,-384.64697665,0.00027188,2]
[313183176,1706893832877,-11643.83758364,0.00027188,2]
[313183178,1706893832890,-2092.1,0.00027188,2]
[313183419,1706893841762,-212.4169632,0.00021977,2]
[313183422,1706893841772,-453.58,0.00022081,3]
[313183425,1706893841781,-5191.41542611,0.00027188,2]
[313183428,1706893841790,-1017.03372915,0.00027189,2]
[313183430,1706893841800,-279.34222337,0.00027189,2]
[313183432,1706893841809,-230.80567313,0.00027189,2]
[313183433,1706893841818,-159.01858397,0.00027189,2]
[313183434,1706893841827,-1242.90655944,0.00027189,2]
[313183435,1706893841836,-3506.80415569,0.00027189,2]
[313183436,1706893842304,-80317.3300421,0.00027189,2]
[313183437,1706893842315,-1298.48012057,0.00027189,2]
[313183438,1706893842326,-1060.1542028,0.00027397,2]
[313183439,1706893842335,-500.0,0.00027397,2]
[313183440,1706893842345,-500.0,0.00027397,2]
[313183441,1706893842355,-500.0,0.00027397,2]
[313183442,1706893842364,-500.0,0.00027397,2]
[313183443,1706893842374,-500.0,0.00027397,2]
[313183444,1706893842383,-302.39,0.00027397,2]
[313183445,1706893842393,-500.0,0.00027397,2]
[313183446,1706893842404,-500.0,0.00027397,2]
[313183447,1706893842414,-453.55708389,0.00027397,2]
[313183448,1706893842423,-524.95,0.00027397,2]
[313183449,1706893842433,-910.68,0.00027397,2]
[313183450,1706893842442,-500.0,0.00027397,2]
[313183451,1706893842452,-500.0,0.00027397,2]
[313183452,1706893842462,-500.0,0.00027397,2]
[313183453,1706893842471,-500.0,0.00027397,2]
[313183454,1706893842481,-500.0,0.00027397,2]
[313183455,1706893842490,-500.0,0.00027397,2]
[313183456,1706893842500,-500.0,0.00027397,2]
[313183457,1706893842509,-333.13,0.00027397,2]
[313183458,1706893842519,-500.0,0.00027397,2]
[313183459,1706893842529,-500.0,0.00027397,2]
[313183460,1706893842539,-506.18,0.00027397,2]
[313183461,1706893842549,-500.0,0.00027397,2]
[313183462,1706893842558,-155.0,0.00027397,2]
[313183463,1706893842567,-500.0,0.00027397,2]
[313183464,1706893842577,-175.8,0.00027397,2]
[313183465,1706893842586,-1094.84,0.00027397,2]
[313183466,1706893842595,-1246.88,0.00027397,2]
[313183467,1706893842605,-500.0,0.00027397,2]
[313183468,1706893842614,-938.42,0.00027397,2]
[313183469,1706893842623,-1031.85,0.00027397,2]
[313183470,1706893842633,-500.0,0.00027397,2]
[313183471,1706893842643,-429.64,0.00027397,2]
[313183472,1706893842652,-500.0,0.00027397,2]
[313183473,1706893842661,-500.0,0.00027397,2]
[313183474,1706893842671,-1556.11,0.00027397,2]
[313183475,1706893842681,-648.82,0.00027397,2]
[313183476,1706893842690,-1285.88,0.00027397,2]
[313183477,1706893842699,-1224.39,0.00027397,2]
[313183478,1706893842709,-507.2,0.00027397,2]
[313183479,1706893842718,-500.0,0.00027397,2]
[313183480,1706893842729,-500.0,0.00027397,2]
[313183481,1706893842739,-500.0,0.00027397,2]
[313183482,1706893842748,-3470.52,0.00027397,2]
[313183483,1706893842757,-2738.55,0.00027397,2]
[313183484,1706893842767,-500.0,0.00027397,2]
[313183485,1706893842778,-500.0,0.00027397,2]
[313183486,1706893842787,-500.0,0.00027397,2]
[313183487,1706893842798,-525.87,0.00027397,2]
[313183488,1706893842808,-500.0,0.00027397,2]
[313183489,1706893842817,-5214.71,0.00027397,2]
[313183490,1706893842826,-846.77,0.00027397,2]
[313183491,1706893842836,-500.0,0.00027397,2]
[313183492,1706893842846,-500.0,0.00027397,2]
[313183493,1706893842855,-500.0,0.00027397,2]
[313183494,1706893842865,-6453.13,0.00027397,2]
[313183495,1706893842875,-500.0,0.00027397,2]
[313183496,1706893842884,-2722.53,0.00027397,2]
[313183497,1706893842894,-500.0,0.00027397,2]
[313183498,1706893842904,-500.0,0.00027397,2]
[313183499,1706893842913,-343.61,0.00027397,2]
[313183500,1706893842923,-172.7552296,0.00027669,2]
[313183501,1706893842932,-500.0,0.00027669,2]
[313183502,1706893842942,-1207.86988352,0.00027669,2]
[313183503,1706893842951,-155.48388863,0.00027669,2]
[313183504,1706893842961,-352.1556835,0.00027669,2]
[313183505,1706893842969,-301.62122874,0.00027669,2]
[313183506,1706893842979,-500.0,0.00027669,2]
[313183507,1706893842988,-383.24716285,0.00027669,2]
[313183508,1706893842997,-500.0,0.00027669,2]
[313183509,1706893843007,-305.79431631,0.00027669,2]
[313183510,1706893843016,-500.0,0.00027669,2]
[313183512,1706893843025,-243.78846002,0.00027669,2]
[313183514,1706893843035,-500.0,0.00027669,2]
[313183517,1706893843045,-500.0,0.00027669,2]
[313183519,1706893843055,-2409.2215566,0.0002767,2]
[313183521,1706893843064,-326.16,0.00027671,2]
[313183522,1706893843074,-365.53,0.00027671,2]
[313183523,1706893843083,-332.09,0.00027671,2]
[313183524,1706893843093,-500.0,0.00027671,2]
[313183525,1706893843103,-500.0,0.00027671,2]
[313183527,1706893843112,-500.0,0.00027671,2]
[313183528,1706893843121,-524.95,0.00027671,2]
[313183529,1706893843130,-910.68,0.00027671,2]
[313183530,1706893843140,-500.0,0.00027671,2]
[313183531,1706893843149,-506.18,0.00027671,2]
[313183532,1706893843159,-500.0,0.00027671,2]
[313183533,1706893843169,-500.0,0.00027671,2]
[313183534,1706893843179,-1094.84,0.00027671,2]
[313183535,1706893843193,-1246.88,0.00027671,2]
[313183536,1706893843202,-259.31,0.00027671,2]
[313183537,1706893843211,-938.42,0.00027671,2]
[313183538,1706893843221,-1031.85,0.00027671,2]
[313183539,1706893843230,-500.0,0.00027671,2]
[313183540,1706893843239,-500.0,0.00027671,2]
[313183541,1706893843351,-500.0,0.00027671,2]
[313183542,1706893843375,-1556.11,0.00027671,2]
[313183543,1706893843385,-648.82,0.00027671,2]
[313183544,1706893843395,-1285.88,0.00027671,2]
[313183545,1706893843404,-1224.39,0.00027671,2]
[313183546,1706893843414,-507.2,0.00027671,2]
[313183547,1706893843423,-500.0,0.00027671,2]
[313183548,1706893843432,-500.0,0.00027671,2]
[313183549,1706893843441,-3470.52,0.00027671,2]
[313183550,1706893843450,-2738.55,0.00027671,2]
[313183551,1706893843459,-500.0,0.00027671,2]
[313183552,1706893843469,-206.76251178,0.00027671,2]
[313183553,1706893843482,-293.23748822,0.00027671,2]
[313183554,1706893843492,-525.87,0.00027671,2]
[313183555,1706893843501,-5214.71,0.00027671,2]
[313183556,1706893843510,-846.77,0.00027671,2]
[313183557,1706893843519,-500.0,0.00027671,2]
[313183558,1706893843529,-589.16,0.00027671,2]
[313183559,1706893843538,-6453.13,0.00027671,2]
[313183560,1706893843548,-500.0,0.00027671,2]
[313183561,1706893843557,-2722.53,0.00027671,2]
[313183562,1706893843566,-151.0,0.00027671,2]
[313183563,1706893843575,-500.0,0.00027671,2]
[313183564,1706893843584,-151.0,0.00027671,2]
[313183565,1706893843594,-500.0,0.00027671,2]
[313183566,1706893843604,-500.0,0.00027945,2]
[313183567,1706893843613,-500.0,0.00027945,2]
[313183568,1706893843623,-500.0,0.00027945,2]
[313183569,1706893843633,-524.95,0.00027945,2]
[313183570,1706893843643,-910.68,0.00027945,2]
[313183571,1706893843652,-500.0,0.00027945,2]
[313183572,1706893843661,-506.18,0.00027945,2]
[313183573,1706893843670,-404.078559,0.00027945,2]
[313183574,1706893843682,-95.921441,0.00027945,2]
[313183575,1706893843692,-355.71245659,0.00027945,2]
[313183576,1706893843701,-1094.84,0.00027945,2]
[313183577,1706893843710,-1246.88,0.00027945,2]
[313183578,1706893843720,-938.42,0.00027945,2]
[313183579,1706893843729,-292.78,0.00027945,2]
[313183580,1706893843738,-18.61316977,0.00027945,2]
[313183581,1706893843751,-1013.23683023,0.00027945,2]
[313183582,1706893843760,-500.0,0.00027945,2]
[313183583,1706893843770,-500.0,0.00027945,2]
[313183584,1706893843780,-1556.11,0.00027945,2]
[313183585,1706893843789,-648.82,0.00027945,2]
[313183586,1706893843802,-1285.88,0.00027945,2]
[313183587,1706893843812,-1224.39,0.00027945,2]
[313183588,1706893843822,-507.2,0.00027945,2]
[313183589,1706893843832,-500.0,0.00027945,2]
[313183590,1706893843841,-500.0,0.00027945,2]
[313183591,1706893843851,-3470.52,0.00027945,2]
[313183592,1706893843860,-2738.55,0.00027945,2]
[313183593,1706893843870,-494.12,0.00027945,2]
[313183594,1706893843880,-500.0,0.00027945,2]
[313183595,1706893843889,-525.87,0.00027945,2]
[313183596,1706893843899,-5214.71,0.00027945,2]
[313183597,1706893843908,-846.77,0.00027945,2]
[313183598,1706893843917,-500.0,0.00027945,2]
[313183599,1706893843927,-6453.13,0.00027945,2]
[313183600,1706893843936,-500.0,0.00027945,2]
[313183601,1706893843946,-2722.53,0.00027945,2]
[313183602,1706893843956,-500.0,0.00027945,2]
[313183603,1706893843965,-500.0,0.00027945,2]
[313183604,1706893843975,-201.261967,0.00028,2]
[313183605,1706893843984,-3000.0,0.00028,2]
[313183606,1706893843993,-459.20413887,0.00028,3]
[313183607,1706893844003,-3507.08836667,0.00028,2]
[313183646,1706893844702,-171.95867383,0.00027187,2]
[313183647,1706893844712,-587.08341117,0.00027396,2]
[313183648,1706893844721,-377.98,0.00027935,3]
[313183649,1706893844731,-182.70265845,0.00028,2]
[313183650,1706893844740,-2651.66215339,0.00028,2]
[313183651,1706893844749,-1734.04996746,0.00028,2]
[313183652,1706893844761,-401.55800038,0.00028,2]
[313183667,1706893846541,-2007.36725295,0.00027187,7]
[313183806,1706895033980,-168.17854817,0.00022328,2]
[313183808,1706895033990,-197.78580005,0.00022422,2]
[313183809,1706895033999,-2042.80747063,0.00022422,2]
[313183811,1706895034008,-212.4169632,0.00022423,2]
[313183813,1706895034017,-1432.81517773,0.00022423,2]
[313183815,1706895034027,-322.06127261,0.00022424,2]
[313183816,1706895034036,-37028.48161745,0.00022428,2]
[313183819,1706895034046,-24900.0,0.00022429,2]
[313183822,1706895034055,-176.81034292,0.00023519,2]